bitfinex-derivatives/quotes_BTCF0:USTF0_20241221
["timestamp","ask_amount","ask_price","bid_price","bid_amount"]
[1734745610911,0.36351401,97446.0,97444.0,0.001]
[1734745611111,0.1013537,97440.0,97412.0,0.051351]
[1734745611317,0.051346,97421.0,97412.0,0.051351]
[1734745611510,0.051346,97421.0,97414.0,0.05135]
[1734745612022,0.051346,97421.0,97416.0,0.051349]
[1734745612524,0.09155748,97424.0,97411.0,0.117]
[1734745613124,0.09155748,97419.0,97411.0,0.117]
[1734745613613,0.09155748,97419.0,97412.0,0.003]
[1734745614121,0.09155748,97419.0,97418.0,0.051348]
[1734745614321,0.09255748,97419.0,97418.0,0.051348]
[1734745614825,0.002,97419.0,97418.0,0.051348]
[1734745615520,0.004,97419.0,97418.0,0.051348]
[1734745616115,0.002,97419.0,97418.0,0.051348]
[1734745616424,0.004,97419.0,97418.0,0.051348]
[1734745616622,0.003,97419.0,97418.0,0.052348]
[1734745617518,0.003,97419.0,97418.0,0.051348]
[1734745619414,0.001,97419.0,97418.0,0.051348]
[1734745619618,0.002,97419.0,97415.0,0.3608]
[1734745619823,0.3608,97416.0,97395.0,0.3608]
[1734745620027,0.1013537,97410.0,97398.0,0.051358]
[1734745620223,0.051355,97405.0,97387.0,0.0583]
[1734745620524,0.3608,97407.0,97392.0,0.30556834]
[1734745620715,0.05136,97395.0,97392.0,0.30556834]
[1734745622126,0.05136,97395.0,97394.0,0.00353998]
[1734745622424,0.10130009,97395.0,97394.0,0.00353998]
[1734745622624,0.10130009,97395.0,97394.0,0.00753998]
[1734745622922,0.05194009,97395.0,97394.0,0.00553998]
[1734745623131,0.05194009,97395.0,97394.0,0.06083998]
[1734745623321,0.05294009,97395.0,97394.0,0.05783998]
[1734745623524,0.003,97395.0,97394.0,0.05783998]
[1734745623723,0.002,97395.0,97394.0,0.05683998]
[1734745624034,0.003,97395.0,97394.0,0.05783998]
[1734745624530,0.003,97395.0,97394.0,0.05683998]
[1734745626334,0.002,97395.0,97394.0,0.05683998]
[1734745626529,0.003,97395.0,97394.0,0.05683998]
[1734745626726,0.09162581,97396.0,97395.0,0.05136]
[1734745628029,0.09162581,97396.0,97395.0,0.16176]
[1734745628337,0.0517,97432.0,97395.0,0.16176]
[1734745628338,0.09162581,97400.0,97399.0,0.051358]
[1734745629537,0.09262581,97400.0,97399.0,0.051358]
[1734745629839,0.001,97400.0,97399.0,0.051358]
[1734745631427,0.0916179,97405.0,97395.0,0.1104]
[1734745631629,0.0916179,97405.0,97404.0,0.412155]
[1734745631830,0.0916179,97405.0,97404.0,0.051355]
[1734745632035,0.0916179,97405.0,97397.0,0.051359]
[1734745632242,0.051357,97401.0,97395.0,0.1104]
[1734745632538,0.0916179,97404.0,97395.0,0.1104]
[1734745633136,0.0916179,97404.0,97403.0,0.3608]
[1734745634337,0.12223062,97405.0,97404.0,0.051355]
[1734745635243,0.15286465,97410.0,97409.0,0.051353]
[1734745635835,0.09171723,97412.0,97404.0,0.052355]
[1734745636142,0.09171723,97412.0,97411.0,0.412152]
[1734745636939,0.09171723,97414.0,97413.0,0.05135]
[1734745638548,0.09271723,97414.0,97413.0,0.05135]
[1734745639239,0.09171723,97414.0,97413.0,0.05135]
[1734745639739,0.09171723,97414.0,97411.0,0.3608]
[1734745639740,0.09171723,97418.0,97417.0,0.051348]
[1734745640544,0.09171723,97418.0,97417.0,0.213148]
[1734745641150,0.23477759,97433.0,97417.0,0.1618]
[1734745641151,0.09171723,97421.0,97417.0,0.1618]
[1734745641337,0.09171723,97421.0,97420.0,0.051347]
[1734745644441,0.051356,97403.0,97399.0,0.3608]
[1734745644642,0.3608,97413.0,97394.0,0.0539]
[1734745644938,0.051356,97403.0,97394.0,0.10526]
[1734745645248,0.3608,97403.0,97396.0,0.24535801]
[1734745645448,0.051359,97397.0,97396.0,0.24535801]
[1734745645743,0.051362,97399.0,97396.0,0.24535801]
[1734745645945,0.051362,97398.0,97396.0,0.24535801]
[1734745646643,0.3608,97400.0,97374.0,0.3608]
[1734745646849,0.05137,97384.0,97380.0,0.051371]
[1734745647947,0.3608,97400.0,97399.0,0.051362]
[1734745648144,0.15286465,97401.0,97399.0,0.051362]
[1734745648346,0.15286465,97401.0,97395.0,0.051364]
[1734745648552,0.18343759,97395.0,97393.0,0.051365]
[1734745649250,0.18343759,97395.0,97393.0,0.106465]
[1734745649547,0.18343759,97395.0,97373.0,0.3608]
[1734745649746,0.051369,97387.0,97378.0,0.051373]
[1734745649947,0.3608,97380.0,97378.0,0.051373]
[1734745652548,0.3618,97380.0,97378.0,0.051373]
[1734745653853,0.09151861,97379.0,97378.0,0.051373]
[1734745655343,0.001,97380.0,97378.0,0.051373]
[1734745655543,0.001,97380.0,97379.0,0.0515]
[1734745655757,0.09151861,97391.0,97390.0,0.051367]
[1734745656552,0.09151861,97391.0,97390.0,0.103967]
[1734745656744,0.09151861,97395.0,97390.0,0.0526]
[1734745656950,0.09151861,97395.0,97394.0,0.051365]
[1734745657552,0.09151861,97395.0,97386.0,0.051369]
[1734745657761,0.3608,97389.0,97373.0,0.0526]
[1734745657945,0.051373,97379.0,97371.0,0.051377]
[1734745658560,0.3608,97374.0,97363.0,0.051381]
[1734745658854,0.051378,97370.0,97363.0,0.051381]
[1734745660147,0.051378,97370.0,97363.0,0.056381]
[1734745660148,0.14289661,97370.0,97363.0,0.056381]
[1734745660753,0.14289661,97370.0,97364.0,0.05138]
[1734745661358,0.14289661,97370.0,97365.0,0.05138]
[1734745661853,0.051378,97370.0,97365.0,0.05138]
[1734745662762,0.051378,97370.0,97365.0,0.05538]
[1734745664964,0.051378,97370.0,97365.0,0.05738]
[1734745665148,0.051378,97370.0,97367.0,0.051379]
[1734745666462,0.14281861,97373.0,97367.0,0.004]
[1734745666666,0.14281861,97373.0,97371.0,0.051377]
[1734745667457,0.0513,97373.0,97371.0,0.051377]
[1734745667764,0.0513,97373.0,97371.0,0.052377]
[1734745668768,0.0513,97373.0,97371.0,0.054377]
[1734745669267,0.102676,97373.0,97371.0,0.003]
[1734745670756,0.051376,97373.0,97371.0,0.003]
[1734745671865,0.09151861,97372.0,97371.0,0.003]
[1734745673268,0.72232,97374.0,97363.0,0.051381]
[1734745673563,0.3608,97364.0,97363.0,0.051381]
[1734745673971,0.051381,97363.0,97357.0,0.051384]
[1734745674558,0.09162568,97360.0,97357.0,0.051384]
[1734745675060,0.09162568,97360.0,97356.0,0.0526]
[1734745675259,0.09162568,97360.0,97359.0,0.051383]
[1734745676157,0.051381,97363.0,97359.0,0.051383]
[1734745676565,0.051381,97363.0,97359.0,0.058383]
[1734745676963,0.051381,97363.0,97359.0,0.062383]
[1734745678267,0.051381,97363.0,97359.0,0.055383]
[1734745678467,0.051381,97363.0,97359.0,0.062383]
[1734745678664,0.051381,97363.0,97359.0,0.011]
[1734745678873,0.051381,97363.0,97360.0,0.051382]
[1734745679176,0.051381,97363.0,97359.0,0.011]
[1734745679366,0.051381,97363.0,97361.0,0.051382]
[1734745679766,0.051383,97360.0,97359.0,0.011]
[1734745679961,0.051383,97360.0,97337.0,0.18429784]
[1734745679962,0.051394,97338.0,97337.0,0.18429784]
[1734745680270,0.412194,97338.0,97337.0,0.18429784]
[1734745680569,0.3608,97338.0,97337.0,0.18429784]
[1734745680872,0.051387,97353.0,97337.0,0.18429784]
[1734745681173,0.051387,97353.0,97347.0,0.051389]
[1734745681174,0.06156397,97353.0,97347.0,0.051389]
[1734745681359,0.06156397,97353.0,97348.0,0.0504]
[1734745682171,0.06256397,97353.0,97348.0,0.0504]
[1734745682771,0.001,97353.0,97348.0,0.0504]
[1734745682967,0.001,97353.0,97352.0,0.051387]
[1734745683276,0.001,97353.0,97349.0,0.1075]
[1734745683277,0.18338338,97358.0,97357.0,0.051384]
[1734745683464,0.18338338,97358.0,97357.0,0.412184]
[1734745684479,0.15281539,97367.0,97357.0,0.3608]
[1734745684777,0.15281539,97367.0,97366.0,0.05138]
[1734745685882,0.005,97367.0,97366.0,0.05138]
[1734745686273,0.15281539,97381.0,97369.0,0.051378]
[1734745686482,0.15281539,97381.0,97380.0,0.051372]
[1734745687271,0.15281539,97381.0,97380.0,0.06153138]
[1734745687475,0.15281539,97385.0,97384.0,0.05137]
[1734745688673,0.15281539,97394.0,97384.0,0.05137]
[1734745688874,0.003,97385.0,97384.0,0.05137]
[1734745689274,0.15281539,97394.0,97393.0,0.051365]
[1734745689580,0.15281539,97394.0,97393.0,0.412165]
[1734745690082,0.27726657,97424.0,97396.0,0.051364]
[1734745690083,0.15298709,97397.0,97396.0,0.051364]
[1734745690276,0.21225974,97415.0,97394.0,0.3608]
[1734745690475,0.21225974,97415.0,97414.0,0.412154]
[1734745690981,7.4e-07,97415.0,97414.0,0.772954]
[1734745691174,7.4e-07,97415.0,97414.0,1.08328056]
[1734745691585,0.0516,97441.0,97435.0,0.051343]
[1734745692775,0.3638,97437.0,97435.0,0.051343]
[1734745695199,0.3638,97437.0,97432.0,0.01034585]
[1734745695200,0.01183031,97453.0,97452.0,0.051334]
[1734745695603,0.3608,97463.0,97447.0,0.3608]
[1734745695792,0.3608,97463.0,97457.0,0.051332]
[1734745697199,0.3608,97463.0,97453.0,0.15197224]
[1734745698106,0.051333,97455.0,97447.0,0.001]
[1734745698303,0.051334,97454.0,97447.0,0.001]
[1734745698501,0.412134,97454.0,97434.0,0.051344]
[1734745698695,0.3608,97443.0,97434.0,0.051344]
[1734745698999,0.3608,97443.0,97436.0,0.051342]
[1734745700297,0.3608,97443.0,97428.0,0.3608]
[1734745700499,0.3608,97443.0,97405.0,0.0542]
[1734745700500,0.3608,97435.0,97410.0,0.15197224]
[1734745700705,0.1579,97442.0,97420.0,0.15197224]
[1734745700893,0.1579,97442.0,97430.0,0.20331724]
[1734745701094,0.1579,97442.0,97434.0,0.051344]
[1734745701300,0.0521,97442.0,97430.0,0.15197224]
[1734745701500,0.0521,97442.0,97439.0,0.051341]
[1734745702202,0.0531,97442.0,97439.0,0.051341]
[1734745704905,0.0531,97442.0,97430.0,0.15197224]
[1734745704906,0.001,97442.0,97441.0,0.05134]
[1734745705908,0.3608,97443.0,97441.0,0.05134]
[1734745706106,0.001,97442.0,97441.0,0.05134]
[1734745707604,0.3608,97445.0,97441.0,0.05134]
[1734745707804,0.001,97442.0,97441.0,0.05134]
[1734745708401,0.1012,97452.0,97441.0,0.05134]
[1734745708711,0.001,97442.0,97441.0,0.05134]
[1734745710611,0.1022,97452.0,97441.0,0.05134]
[1734745710805,0.1022,97452.0,97434.0,0.0104022]
[1734745711009,0.1022,97452.0,97450.0,0.051335]
[1734745711403,0.1012,97452.0,97450.0,0.051335]
[1734745711603,0.0526,97451.0,97450.0,0.051335]
[1734745712007,0.4134,97451.0,97450.0,0.051335]
[1734745712203,0.0526,97451.0,97450.0,0.051335]
[1734745712608,0.0526,97451.0,97450.0,0.052335]
[1734745713813,0.0654705,97451.0,97450.0,0.052335]
[1734745716213,0.0654705,97451.0,97450.0,0.001]
[1734745717813,0.18233653,97472.0,97450.0,0.001]
[1734745718017,0.1062,97467.0,97466.0,0.051324]
[1734745718216,0.0517,97467.0,97466.0,0.051324]
[1734745718417,0.0557,97471.0,97470.0,0.051322]
[1734745718618,0.0557,97471.0,97470.0,0.412122]
[1734745718917,0.18233653,97472.0,97470.0,0.412122]
[1734745719917,0.0517,97478.0,97470.0,0.3608]
[1734745720218,0.00153957,97483.0,97477.0,0.051318]
[1734745720420,0.00153957,97483.0,97482.0,0.3608]
[1734745722521,0.00153957,97483.0,97473.0,0.15160594]
[1734745722716,0.05132,97475.0,97469.0,0.18429784]
[1734745722911,0.0555,97474.0,97469.0,0.18429784]
[1734745723613,0.0555,97474.0,97463.0,0.18429784]
[1734745724015,0.0555,97474.0,97464.0,0.051325]
[1734745725426,0.051323,97468.0,97462.0,0.3608]
[1734745726830,0.06682354,97474.0,97462.0,0.412126]
[1734745727326,0.001,97468.0,97462.0,0.412126]
[1734745727934,0.01199647,97467.0,97462.0,0.412126]
[1734745728226,0.01199647,97466.0,97462.0,0.412126]
[1734745728426,0.18925673,97474.0,97462.0,0.412126]
[1734745728427,0.01199647,97465.0,97462.0,0.412126]
[1734745728925,0.01199647,97464.0,97462.0,0.412126]
[1734745729431,4.7e-07,97463.0,97462.0,0.412126]
[1734745730321,0.12243319,97473.0,97472.0,0.051321]
[1734745730631,0.12243319,97473.0,97472.0,0.412121]
[1734745731226,0.0566,97485.0,97473.0,0.05132]
[1734745731418,0.0566,97485.0,97473.0,0.20292594]
[1734745733526,0.0566,97485.0,97474.0,0.05132]
[1734745734723,0.06680907,97485.0,97474.0,0.05232]
[1734745735313,0.06680907,97485.0,97475.0,0.051319]
[1734745736619,0.06680907,97485.0,97474.0,0.001]
[1734745736820,0.18924226,97485.0,97480.0,0.051316]
[1734745738421,0.18924226,97485.0,97480.0,0.052316]
[1734745738618,0.051316,97481.0,97472.0,0.3608]
[1734745738830,0.48924226,97485.0,97453.0,0.3608]
[1734745738831,0.051321,97472.0,97463.0,0.3608]
[1734745739128,0.0561,97471.0,97463.0,0.3608]
[1734745739733,0.12243319,97484.0,97463.0,0.3608]
[1734745739927,0.0561,97483.0,97475.0,0.051319]
[1734745740133,0.0561,97483.0,97480.0,0.001]
[1734745740335,0.01203824,97482.0,97480.0,0.001]
[1734745740522,0.01203824,97481.0,97480.0,0.001]
[1734745741231,0.01203824,97481.0,97479.0,0.051317]
[1734745741429,0.01203824,97480.0,97479.0,0.051317]
[1734745743537,0.002,97481.0,97479.0,0.051317]
[1734745743725,0.002,97481.0,97480.0,0.0512]
[1734745744535,0.12241729,97493.0,97491.0,0.051311]
[1734745744735,0.12241729,97493.0,97492.0,0.3608]
[1734745745118,0.13455476,97493.0,97492.0,0.3608]
[1734745745530,0.01213747,97493.0,97492.0,0.3608]
[1734745745723,0.01313747,97493.0,97492.0,0.3608]
[1734745747326,0.01313747,97493.0,97492.0,0.3618]
[1734745747833,0.01213747,97493.0,97492.0,0.3618]
[1734745748135,0.01313747,97493.0,97492.0,0.3618]
[1734745749231,0.01313747,97493.0,97492.0,0.7226]
[1734745750340,0.001,97493.0,97492.0,0.775]
[1734745751530,0.001,97493.0,97492.0,0.7226]
[1734745752542,0.001,97493.0,97492.0,0.3618]
[1734745753228,0.01312425,97493.0,97492.0,0.3618]
[1734745755142,0.16622747,97493.0,97492.0,0.3618]
[1734745756133,0.15410322,97493.0,97492.0,0.3618]
[1734745756336,0.01312425,97493.0,97492.0,0.3618]
[1734745758141,0.001,97493.0,97492.0,0.3618]
[1734745758544,0.001,97493.0,97492.0,0.4270077]
[1734745758743,0.001,97493.0,97492.0,0.4804077]
[1734745760638,0.001,97493.0,97492.0,0.3618]
[1734745763542,0.001,97493.0,97492.0,0.001]
[1734745764748,0.15410322,97493.0,97492.0,0.001]
[1734745766254,0.001,97493.0,97492.0,0.001]
[1734745766954,0.01307123,97493.0,97492.0,0.001]
[1734745771748,0.06295799,97493.0,97492.0,0.001]
[1734745771949,0.05088676,97493.0,97492.0,0.001]
[1734745772961,0.06284333,97493.0,97492.0,0.001]
[1734745782179,0.06284333,97493.0,97492.0,0.3618]
[1734745784476,0.01295657,97493.0,97492.0,0.3618]
[1734745785173,0.001,97493.0,97492.0,0.4163]
[1734745785874,0.12394628,97493.0,97492.0,0.4163]
[1734745787481,0.001,97493.0,97492.0,0.4163]
[1734745788777,0.001,97493.0,97492.0,0.66081377]
[1734745790083,0.001,97493.0,97492.0,0.4153]
[1734745790685,0.001,97493.0,97492.0,0.3608]
[1734745790979,0.051311,97492.0,97491.0,0.24551377]
[1734745791282,0.159911,97492.0,97491.0,0.24551377]
[1734745791485,0.17197473,97492.0,97491.0,0.24551377]
[1734745791787,0.17197473,97492.0,97477.0,0.72959066]
[1734745791788,0.17197473,97492.0,97490.0,0.24551377]
[1734745792177,0.01206373,97491.0,97490.0,0.24551377]
[1734745793188,0.051313,97489.0,97481.0,0.051317]
[1734745793381,0.01206373,97488.0,97481.0,0.051317]
[1734745793683,0.051313,97489.0,97477.0,0.3608]
[1734745793684,0.01206373,97487.0,97484.0,0.051315]
[1734745793884,0.01206373,97486.0,97484.0,0.051315]
[1734745794387,0.01206373,97485.0,97484.0,0.051315]
[1734745795588,0.01306373,97485.0,97484.0,0.051315]
[1734745796090,0.06395559,97485.0,97484.0,0.051315]
[1734745799590,0.05189186,97485.0,97484.0,0.051315]
[1734745800491,0.002,97485.0,97484.0,0.051315]
[1734745801391,0.051318,97479.0,97477.0,0.3608]
[1734745802293,0.01206373,97478.0,97477.0,0.3608]
[1734745803682,0.0619518,97478.0,97477.0,0.3608]
[1734745805091,0.1653959,97478.0,97477.0,0.3608]
[1734745805787,0.1653959,97478.0,97460.0,0.11120982]
[1734745806091,0.051323,97470.0,97465.0,0.051325]
[1734745807181,0.051324,97467.0,97465.0,0.051325]
[1734745807794,0.051324,97467.0,97465.0,0.059325]
[1734745808494,0.051324,97467.0,97465.0,0.008]
[1734745808795,0.412124,97467.0,97465.0,0.008]
[1734745808980,0.422213,97467.0,97465.0,0.008]
[1734745809182,0.01206373,97466.0,97465.0,0.008]
[1734745809793,0.422933,97467.0,97465.0,0.008]
[1734745809997,0.04990488,97466.0,97465.0,0.008]
[1734745810188,0.06196861,97466.0,97465.0,0.008]
[1734745810386,0.04990488,97466.0,97465.0,0.008]
[1734745810795,0.04990488,97466.0,97465.0,0.003]
[1734745810991,0.061413,97467.0,97465.0,0.008]
[1734745811194,0.061413,97467.0,97466.0,0.051325]
[1734745811195,0.01206373,97467.0,97466.0,0.051325]
[1734745811594,0.15310226,97469.0,97465.0,0.3688]
[1734745811801,0.15310226,97469.0,97467.0,0.051324]
[1734745812793,0.09185711,97468.0,97467.0,0.051324]
[1734745813397,0.09185711,97468.0,97467.0,0.052324]
[1734745814003,0.09185711,97470.0,97469.0,0.051323]
[1734745815305,0.09185711,97472.0,97471.0,0.051322]
[1734745817189,0.09185711,97475.0,97474.0,0.05132]
[1734745818605,0.09285711,97475.0,97474.0,0.05132]
[1734745819790,0.14417711,97475.0,97467.0,0.3608]
[1734745819992,0.06338373,97474.0,97467.0,0.3608]
[1734745820204,0.01206373,97473.0,97467.0,0.3608]
[1734745820607,0.01206373,97472.0,97467.0,0.3608]
[1734745820805,0.01206373,97471.0,97467.0,0.3608]
[1734745820995,0.01206373,97470.0,97467.0,0.3618]
[1734745821190,0.01206373,97469.0,97467.0,0.3638]
[1734745821708,0.01206373,97468.0,97467.0,0.3638]
[1734745822898,0.16516599,97468.0,97467.0,0.3638]
[1734745823503,0.16516599,97468.0,97467.0,0.415124]
[1734745825198,0.15310226,97468.0,97467.0,0.415124]
[1734745825599,0.15310226,97468.0,97467.0,0.3638]
[1734745825797,0.15310226,97470.0,97467.0,0.3638]
[1734745826803,0.01212359,97468.0,97467.0,0.3638]
[1734745827193,0.16522585,97468.0,97467.0,0.3638]
[1734745828707,0.16522585,97468.0,97467.0,0.3628]
[1734745828909,0.16522585,97468.0,97467.0,0.3638]
[1734745829593,0.01212359,97468.0,97467.0,0.3638]
[1734745831104,0.02225074,97468.0,97467.0,0.3638]
[1734745831301,0.02225074,97468.0,97467.0,0.003]
[1734745832103,0.17576579,97468.0,97467.0,0.003]
[1734745833399,0.07215263,97468.0,97467.0,0.003]
[1734745834103,0.051329,97458.0,97457.0,0.3608]
[1734745834504,0.06345259,97458.0,97457.0,0.3608]
[1734745835211,0.06345259,97458.0,97457.0,0.3638]
[1734745835414,0.06345259,97458.0,97457.0,0.003]
[1734745836304,0.06345259,97458.0,97457.0,0.009]
[1734745836716,0.11335448,97458.0,97457.0,0.009]
[1734745838404,0.29752953,97458.0,97457.0,0.009]
[1734745838606,0.051335,97447.0,97439.0,0.1843611]
[1734745838809,0.051338,97440.0,97439.0,0.1843611]
[1734745839003,0.051341,97435.0,97434.0,0.24551377]
[1734745839206,0.01212359,97435.0,97413.0,0.051353]
[1734745839509,0.051344,97430.0,97413.0,0.051353]
[1734745839707,0.06346759,97430.0,97413.0,0.051353]
[1734745840215,0.051347,97424.0,97413.0,0.051353]
[1734745840506,0.051348,97422.0,97413.0,0.051353]
[1734745840712,0.02279517,97421.0,97413.0,0.051353]
[1734745840907,0.02279517,97420.0,97413.0,0.051353]
[1734745841106,0.02279517,97419.0,97409.0,0.3608]
[1734745841311,0.02279517,97418.0,97417.0,0.05135]
[1734745841908,0.00876737,97418.0,97417.0,0.41215]
[1734745842703,0.00876737,97420.0,97417.0,0.3608]
[1734745842903,0.15309145,97421.0,97419.0,0.05135]
[1734745843109,0.09179546,97427.0,97424.0,0.051347]
[1734745843311,0.00875178,97426.0,97425.0,0.3608]
[1734745844112,0.00876617,97426.0,97425.0,0.3608]
[1734745844817,0.00976617,97426.0,97425.0,0.3608]
[1734745848416,0.00976617,97426.0,97425.0,0.4172]
[1734745851422,0.00976617,97426.0,97417.0,0.36132]
[1734745851423,0.02379204,97426.0,97417.0,0.36132]
[1734745851619,0.05135,97419.0,97417.0,0.3608]
[1734745851816,0.02279204,97418.0,97417.0,0.3608]
[1734745852018,0.07709204,97418.0,97417.0,0.3608]
[1734745852215,0.07704917,97418.0,97410.0,0.3608]
[1734745852420,0.02274917,97417.0,97410.0,0.3608]
[1734745852629,0.02274917,97416.0,97410.0,0.3608]
[1734745852921,0.3608,97414.0,97402.0,0.0549]
[1734745853122,0.02274917,97413.0,97400.0,0.3608]
[1734745853315,0.02274917,97412.0,97400.0,0.3608]
[1734745853515,0.051359,97401.0,97400.0,0.3608]
[1734745853820,0.06010868,97401.0,97400.0,0.3608]
[1734745854413,0.06010868,97401.0,97400.0,0.3698]
[1734745854724,0.06010868,97401.0,97400.0,0.009]
[1734745854920,0.00974968,97401.0,97388.0,0.3608]
[1734745855120,0.052359,97401.0,97400.0,0.005]
[1734745855326,0.07505222,97401.0,97400.0,0.005]
[1734745855621,0.051366,97388.0,97387.0,0.00154004]
[1734745855818,0.051373,97375.0,97372.0,0.3608]
[1734745856626,0.00872837,97374.0,97372.0,0.3608]
[1734745856822,0.051373,97375.0,97372.0,0.3608]
[1734745858918,0.06172215,97375.0,97372.0,0.3608]
[1734745859322,0.07044155,97375.0,97372.0,0.3608]
[1734745859526,0.0087194,97374.0,97372.0,0.3608]
[1734745859728,0.0087194,97373.0,97372.0,0.3608]
[1734745860027,0.0087194,97374.0,97372.0,0.3608]
[1734745860228,0.0087194,97373.0,97372.0,0.3608]
[1734745860721,0.00871891,97373.0,97372.0,0.3608]
[1734745862924,0.00871351,97373.0,97372.0,0.3608]
[1734745863327,0.02265521,97373.0,97372.0,0.3608]
[1734745863829,0.00871354,97373.0,97372.0,0.3608]
[1734745864238,0.02265521,97373.0,97372.0,0.3608]
[1734745864735,0.02265521,97373.0,97364.0,0.051378]
[1734745864736,0.051375,97369.0,97364.0,0.051378]
[1734745864924,0.00871354,97368.0,97364.0,0.051378]
[1734745865126,0.01034915,97375.0,97361.0,0.3608]
[1734745865127,0.051379,97363.0,97361.0,0.3608]
[1734745865326,0.02265521,97362.0,97354.0,0.051383]
[1734745865526,0.05138,97360.0,97354.0,0.051383]
[1734745865730,0.02265521,97359.0,97354.0,0.051383]
[1734745865930,0.02265521,97358.0,97350.0,0.01013399]
[1734745866129,0.00871354,97357.0,97356.0,0.051382]
[1734745867230,0.00971354,97357.0,97356.0,0.058382]
[1734745867824,0.00971354,97357.0,97356.0,0.061382]
[1734745868624,0.00971354,97357.0,97356.0,0.01]
[1734745868625,0.0087028,97357.0,97356.0,0.01]
[1734745868824,0.01212359,97372.0,97371.0,0.051374]
[1734745869032,0.09151356,97378.0,97377.0,0.051371]
[1734745870434,0.09351356,97378.0,97377.0,0.051371]
[1734745870728,0.003,97378.0,97377.0,0.051371]
[1734745879542,0.01212359,97396.0,97377.0,0.051371]
[1734745879543,0.01212359,97395.0,97394.0,0.051362]
[1734745879743,0.01212359,97395.0,97394.0,0.772962]
[1734745880748,0.02472851,97395.0,97394.0,0.772962]
[1734745881547,0.03172851,97395.0,97394.0,0.773962]
[1734745881847,0.01960492,97395.0,97394.0,0.773962]
[1734745883149,0.01962209,97395.0,97394.0,0.78436211]
[1734745883343,0.01962245,97395.0,97394.0,0.78436211]
[1734745886141,0.01962041,97395.0,97394.0,0.78436211]
[1734745886639,0.01962041,97395.0,97394.0,0.7226]
[1734745886842,0.031744,97395.0,97394.0,0.3618]
[1734745889049,0.03175246,97395.0,97394.0,0.3618]
[1734745889457,0.03175252,97395.0,97394.0,0.3618]
[1734745889847,0.11497542,97395.0,97394.0,0.3618]
[1734745890944,0.11497542,97395.0,97394.0,0.001]
[1734745891150,0.07448559,97395.0,97394.0,0.001]
[1734745891754,0.08310911,97395.0,97394.0,0.001]
[1734745893645,0.08311472,97395.0,97394.0,0.001]
[1734745894748,0.03175272,97395.0,97394.0,0.052362]
[1734745896557,0.01962913,97395.0,97394.0,0.052362]
[1734745897357,0.01962913,97395.0,97394.0,0.06280517]
[1734745900063,0.01964712,97395.0,97394.0,0.06280517]
[1734745901366,0.01964712,97395.0,97394.0,0.78440517]
[1734745902667,0.01962271,97395.0,97394.0,0.78440517]
[1734745906155,0.01962271,97395.0,97394.0,0.7226]
[1734745906356,0.0317463,97395.0,97394.0,0.3618]
[1734745907357,0.08168224,97395.0,97394.0,0.001]
[1734745907564,0.09175159,97395.0,97394.0,0.001]
[1734745908360,0.08312888,97395.0,97394.0,0.001]
[1734745908563,0.13885836,97395.0,97394.0,0.001]
[1734745911059,0.43885836,97395.0,97389.0,0.0006]
[1734745911263,0.051369,97382.0,97378.0,0.3608]
[1734745911562,0.07212207,97381.0,97378.0,0.3608]
[1734745911771,0.051372,97376.0,97370.0,0.3608]
[1734745911963,0.10042948,97375.0,97370.0,0.3608]
[1734745912364,0.11255307,97375.0,97370.0,0.3608]
[1734745912866,0.16248901,97375.0,97370.0,0.3608]
[1734745914267,0.1503472,97375.0,97370.0,0.3608]
[1734745914566,0.051373,97374.0,97370.0,0.3608]
[1734745914779,0.00861126,97373.0,97370.0,0.3608]
[1734745915071,0.05998526,97372.0,97370.0,0.3608]
[1734745915267,0.00861126,97371.0,97370.0,0.3608]
[1734745915861,0.1615332,97371.0,97370.0,0.3608]
[1734745916265,0.1615332,97371.0,97370.0,0.3618]
[1734745917172,0.15292194,97372.0,97371.0,0.051374]
[1734745917376,0.16152718,97372.0,97371.0,0.051374]
[1734745918365,0.00860524,97372.0,97371.0,0.051374]
[1734745919277,0.00860524,97372.0,97371.0,0.052374]
[1734745919662,0.10031456,97372.0,97371.0,0.052374]
[1734745919977,0.10031456,97372.0,97371.0,0.413174]
[1734745920165,0.10032678,97372.0,97371.0,0.413174]
[1734745922062,0.09170932,97372.0,97371.0,0.413174]
[1734745922265,0.00861983,97372.0,97371.0,0.413174]
[1734745924673,0.00861983,97372.0,97371.0,0.3618]
[1734745925469,0.00861496,97372.0,97371.0,0.3618]
[1734745925875,0.00861496,97372.0,97371.0,0.4104]
[1734745927075,0.00863867,97378.0,97377.0,0.051371]
[1734745927384,0.09170932,97379.0,97377.0,0.412171]
[1734745927676,0.09170932,97390.0,97388.0,0.051365]
[1734745927884,0.09170932,97390.0,97389.0,0.3608]
[1734745929178,0.09170932,97391.0,97390.0,0.051364]
[1734745930269,0.09170932,97391.0,97390.0,0.096664]
[1734745930475,0.007,97391.0,97390.0,0.097664]
[1734745931672,0.01,97391.0,97390.0,0.097664]
[1734745936486,0.02405456,97396.0,97395.0,0.051362]
[1734745936676,0.02405456,97396.0,97395.0,0.412162]
[1734745937272,0.12228667,97406.0,97405.0,0.051356]
[1734745937476,0.12228667,97406.0,97405.0,0.412156]
[1734745938783,0.12228667,97416.0,97405.0,0.3608]
[1734745938981,0.12228667,97416.0,97415.0,0.412151]
[1734745939182,0.13084246,97416.0,97415.0,0.412151]
[1734745939484,0.12228667,97416.0,97415.0,0.412151]
[1734745939782,0.13084003,97416.0,97415.0,0.412151]
[1734745940178,0.00855336,97416.0,97415.0,0.413151]
[1734745940784,0.01055336,97416.0,97415.0,0.413151]
[1734745942889,0.01054986,97416.0,97415.0,0.413151]
[1734745943891,0.01054986,97416.0,97415.0,0.3618]
[1734745944089,0.01054986,97416.0,97401.0,0.051358]
[1734745944278,0.02058031,97415.0,97410.0,0.051354]
[1734745944483,0.00854986,97414.0,97412.0,0.051353]
[1734745944679,0.02058031,97413.0,97412.0,0.051353]
[1734745944886,0.00854986,97413.0,97412.0,0.051353]